bitfinex-derivatives/quotes_BTCF0:USTF0_20251023
["timestamp","ask_amount","ask_price","bid_price","bid_amount"]
[1761249351256,6.553e-05,110310.0,110300.0,1.08052755]
[1761249351457,6.553e-05,110310.0,110300.0,1.39956755]
[1761249354164,6.553e-05,110310.0,110300.0,1.23684909]
[1761249354365,6.553e-05,110310.0,110300.0,1.39956755]
[1761249355272,6.553e-05,110310.0,110300.0,1.39952755]
[1761249355760,6.553e-05,110310.0,110300.0,1.08052755]
[1761249356065,6.553e-05,110310.0,110300.0,1.39952755]
[1761249360956,6.553e-05,110310.0,110300.0,1.08052755]
[1761249361159,6.553e-05,110310.0,110300.0,1.39944755]
[1761249362784,6.553e-05,110310.0,110300.0,1.56218035]
[1761249363368,0.18515116,110310.0,110300.0,0.68053472]
[1761249363571,0.65857916,110310.0,110300.0,0.06637289]
[1761249363758,0.68059077,110310.0,110300.0,0.06637289]
[1761249363962,0.70498132,110310.0,110300.0,0.38533289]
[1761249364159,0.86770695,110310.0,110300.0,0.06637289]
[1761249364363,0.70498132,110310.0,110300.0,0.38533289]
[1761249366572,1.11601132,110310.0,110300.0,0.05288289]
[1761249366769,1.31125243,110310.0,110300.0,0.00753289]
[1761249366973,1.31125243,110310.0,110300.0,0.32649289]
[1761249368269,1.31125243,110310.0,110300.0,0.00753289]
[1761249368478,1.27873695,110310.0,110300.0,0.25615436]
[1761249369075,1.31125243,110310.0,110300.0,0.25615436]
[1761249369668,0.91125243,110310.0,110300.0,0.25615436]
[1761249370268,0.87873695,110310.0,110300.0,0.25615436]
[1761249371572,0.1350044,110290.0,110280.0,0.15791274]
[1761249371878,0.65861231,110290.0,110280.0,0.47687274]
[1761249372078,0.68062392,110290.0,110280.0,0.47687274]
[1761249372879,0.68062392,110290.0,110280.0,0.47987274]
[1761249373181,0.68062392,110290.0,110280.0,0.48083274]
[1761249375284,0.51789829,110290.0,110280.0,0.55290577]
[1761249375482,0.68062392,110290.0,110280.0,0.48083274]
[1761249376289,0.51789829,110290.0,110280.0,0.48083274]
[1761249376484,0.68062392,110290.0,110280.0,0.48083274]
[1761249378292,0.68062392,110290.0,110280.0,0.39018014]
[1761249378694,0.65861231,110290.0,110280.0,0.48083274]
[1761249378893,0.68071225,110290.0,110280.0,0.48083274]
[1761249379893,0.68071225,110290.0,110280.0,0.64355837]
[1761249380296,0.68071225,110290.0,110280.0,0.48083274]
[1761249380598,0.68071225,110290.0,110280.0,0.64355837]
[1761249381199,0.02218222,110290.0,110280.0,1.167084]
[1761249381495,8.228e-05,110290.0,110280.0,1.167084]
[1761249381886,0.09072668,110290.0,110280.0,1.167084]
[1761249382086,0.13508668,110290.0,110280.0,1.167084]
[1761249383093,0.02244228,110290.0,110280.0,1.167084]
[1761249383290,8.228e-05,110290.0,110280.0,1.167084]
[1761249384691,8.228e-05,110290.0,110280.0,1.567084]
[1761249386489,0.02160228,110290.0,110280.0,1.248164]
[1761249386696,0.04287228,110290.0,110280.0,1.567044]
[1761249387300,0.02160228,110290.0,110280.0,1.567044]
[1761249387493,8.228e-05,110290.0,110280.0,1.567044]
[1761249391590,8.228e-05,110290.0,110280.0,1.72976963]
[1761249391786,0.08909049,110310.0,110290.0,0.0906416]
[1761249391990,0.04649049,110320.0,110310.0,0.147218]
[1761249392189,0.48393258,110330.0,110320.0,0.1472098]
[1761249392190,0.40729049,110330.0,110320.0,0.1472098]
[1761249392395,0.38289994,110330.0,110320.0,0.79166106]
[1761249393096,0.02209994,110330.0,110320.0,0.79166106]
[1761249393295,0.57301577,110340.0,110330.0,0.1472016]
[1761249393496,0.54050029,110340.0,110330.0,0.30992723]
[1761249394001,0.47350974,110340.0,110330.0,0.31918436]
[1761249394299,0.38289994,110340.0,110330.0,0.31918436]
[1761249395098,0.38389994,110340.0,110330.0,0.31918436]
[1761249395296,0.47450324,110340.0,110330.0,0.31918436]
[1761249395502,0.49583324,110340.0,110330.0,0.31918436]
[1761249395998,0.49583324,110340.0,110330.0,0.32018436]
[1761249396194,0.38389994,110340.0,110330.0,0.32018436]
[1761249396401,0.38389994,110340.0,110330.0,0.48290999]
[1761249396605,0.3618,110340.0,110330.0,0.32018436]
[1761249397101,0.001,110340.0,110330.0,1.24370999]
[1761249397403,0.0048,110350.0,110340.0,0.1471933]
[1761249397602,0.0048,110350.0,110340.0,0.79160456]
[1761249398304,0.0048,110350.0,110340.0,1.15240456]
[1761249398502,0.47344988,110370.0,110360.0,0.1471769]
[1761249398800,0.49477988,110370.0,110360.0,0.79194816]
[1761249399108,0.40420018,110370.0,110360.0,0.79194816]
[1761249399303,0.3608,110370.0,110360.0,0.79194816]
[1761249399803,0.02133,110370.0,110360.0,0.79194816]
[1761249400192,0.67874235,110380.0,110370.0,0.1471687]
[1761249400496,0.67874235,110380.0,110370.0,0.30989433]
[1761249401809,0.67974235,110380.0,110370.0,0.30989433]
[1761249403210,0.67969428,110380.0,110370.0,0.30989433]
[1761249404108,0.51696865,110380.0,110370.0,0.30989433]
[1761249404302,0.67969428,110380.0,110370.0,0.21931563]
[1761249404502,0.67969428,110380.0,110370.0,0.30989433]
[1761249406610,0.65770153,110380.0,110370.0,0.30989433]
[1761249407408,0.67968033,110380.0,110370.0,0.30989433]
[1761249407810,0.65770153,110380.0,110370.0,0.21931563]
[1761249408104,0.67968051,110380.0,110370.0,0.21931563]
[1761249408505,0.85343614,110380.0,110370.0,0.04325]
[1761249408712,0.85343614,110380.0,110360.0,0.1039217]
[1761249408713,0.1331787,110370.0,110360.0,0.30989733]
[1761249409009,0.65670433,110370.0,110360.0,0.62897733]
[1761249409599,0.65670433,110370.0,110360.0,0.1471717]
[1761249409810,0.68648709,110370.0,110360.0,0.4662517]
[1761249410110,0.67868709,110370.0,110360.0,0.4672517]
[1761249410312,0.67868709,110370.0,110360.0,0.62997733]
[1761249410509,0.67868709,110370.0,110360.0,0.4672517]
[1761249410910,0.67868709,110370.0,110360.0,0.4662517]
[1761249411111,0.67968709,110370.0,110360.0,0.4662569]
[1761249412010,0.68748709,110370.0,110360.0,0.04325]
[1761249412312,0.68748709,110370.0,110360.0,0.36233]
[1761249412998,0.68748709,110370.0,110360.0,0.31908]
[1761249413202,0.1347169,110360.0,110350.0,0.30997383]
[1761249413403,0.65824253,110360.0,110350.0,0.62901383]
[1761249413604,0.68022529,110360.0,110350.0,0.62901383]
[1761249414506,0.68022529,110360.0,110350.0,0.63001383]
[1761249416207,0.68022529,110360.0,110350.0,0.62997383]
[1761249416412,0.68022529,110360.0,110350.0,0.62897383]
[1761249416911,0.68122529,110360.0,110350.0,0.62897383]
[1761249418311,0.70546049,110360.0,110350.0,0.62897383]
[1761249418813,0.70546049,110360.0,110350.0,0.4662482]
[1761249419309,0.70546049,110360.0,110350.0,0.1472482]
[1761249419514,0.86818612,110360.0,110350.0,0.37562]
[1761249419716,0.70546049,110360.0,110350.0,0.37562]
[1761249419913,0.54273486,110360.0,110350.0,0.4662151]
[1761249420115,0.70546049,110360.0,110350.0,0.4662151]
[1761249420314,0.70546049,110360.0,110350.0,0.37562]
[1761249420315,0.9007016,110360.0,110350.0,0.37562]
[1761249420503,0.9085016,110360.0,110350.0,0.37562]
[1761249420708,0.9007016,110360.0,110350.0,0.4662151]
[1761249421015,0.73797597,110360.0,110350.0,0.1472551]
[1761249421316,0.71374077,110360.0,110350.0,0.37562]
[1761249421513,0.8842664,110360.0,110350.0,0.36228]
[1761249421710,0.8842664,110360.0,110340.0,0.26666263]
[1761249421711,0.1418351,110350.0,110340.0,0.133917]
[1761249421912,0.69782389,110350.0,110340.0,0.04332]
[1761249422110,0.1135933,110340.0,110330.0,0.15624931]
[1761249422317,0.71509067,110340.0,110330.0,0.47520931]
[1761249422517,0.73707343,110340.0,110330.0,0.47520931]
[1761249423117,0.73707343,110340.0,110330.0,0.15624931]
[1761249423311,0.93529917,110340.0,110330.0,0.34179]
[1761249423620,0.93529917,110340.0,110330.0,0.36428]
[1761249423810,0.90282389,110340.0,110330.0,0.36428]
[1761249424511,0.93629647,110340.0,110330.0,0.4538915]
[1761249424713,0.77355289,110340.0,110330.0,0.4676315]
[1761249424920,0.77355289,110340.0,110330.0,0.37702]
[1761249425223,0.77355289,110340.0,110330.0,0.36228]
[1761249425726,0.74108031,110340.0,110330.0,0.36228]
[1761249425918,0.74208031,110340.0,110330.0,0.36228]
[1761249426220,0.7745431,110340.0,110330.0,0.36228]
[1761249427118,0.7745431,110340.0,110330.0,0.04332]
[1761249427318,0.1347415,110330.0,110320.0,0.15648589]
[1761249427518,0.71504503,110330.0,110320.0,0.47544589]
[1761249427712,0.73702779,110330.0,110320.0,0.38482609]
[1761249427914,0.76931328,110330.0,110320.0,0.37562]
[1761249428116,0.76931328,110330.0,110320.0,0.36228]
[1761249428317,0.72048671,110330.0,110320.0,0.36228]
[1761249428520,0.76931328,110330.0,110320.0,0.36228]
[1761249428722,0.74481537,110330.0,110320.0,0.36228]
[1761249429013,0.57530769,110330.0,110320.0,0.15683447]
[1761249429216,0.54285292,110330.0,110320.0,0.38517467]
[1761249429615,0.54285292,110330.0,110320.0,0.47579447]
[1761249430515,0.54285292,110330.0,110320.0,0.37602]
[1761249431114,0.54285292,110330.0,110320.0,0.38508474]
[1761249431917,0.09144142,110330.0,110320.0,0.63841212]
[1761249432122,0.52087016,110330.0,110320.0,0.54779242]
[1761249432322,0.51852426,110330.0,110320.0,0.54779242]
[1761249432525,0.51852426,110330.0,110320.0,0.47570444]
[1761249432825,0.54285292,110330.0,110320.0,0.47570444]
[1761249433316,0.51852426,110330.0,110320.0,0.47570444]
[1761249434719,0.15772426,110330.0,110320.0,0.47570444]
[1761249434914,0.4965415,110330.0,110320.0,0.47570444]
[1761249435215,0.51852426,110330.0,110320.0,0.47570444]
[1761249435422,0.51852426,110330.0,110320.0,0.63841212]
[1761249436318,0.51852426,110330.0,110320.0,0.47570444]
[1761249436922,0.51852426,110330.0,110320.0,0.63841212]
[1761249439021,0.02298276,110330.0,110320.0,0.63841212]
[1761249439226,0.0916116,110330.0,110320.0,0.63841212]
[1761249440322,0.001,110330.0,110320.0,0.63841212]
[1761249440828,0.0916116,110330.0,110320.0,0.63841212]
[1761249442228,0.001,110330.0,110320.0,0.63841212]
[1761249444624,0.001,110330.0,110320.0,1.39921212]
[1761249448722,0.40711142,110350.0,110340.0,0.147256]
[1761249448921,0.47338056,110350.0,110340.0,0.62876368]
[1761249449121,0.02198276,110350.0,110340.0,0.98956368]
[1761249449426,0.54119112,110360.0,110350.0,0.1472478]
[1761249449728,0.54119112,110360.0,110350.0,0.30995548]
[1761249450526,0.08980142,110360.0,110350.0,0.30995548]
[1761249450728,0.16240826,110360.0,110350.0,0.30995548]
[1761249452022,0.17740826,110360.0,110350.0,0.31095548]
[1761249454328,0.1530796,110360.0,110350.0,0.31095548]
[1761249456331,0.5138796,110360.0,110350.0,0.22035768]
[1761249456529,0.53594012,110360.0,110350.0,0.22035768]
[1761249456730,0.53594012,110360.0,110350.0,0.05765]
[1761249457323,0.73080634,110360.0,110350.0,0.04465]
[1761249457628,0.73080634,110360.0,110350.0,0.34183]
[1761249458331,0.73080634,110360.0,110350.0,0.36353]
[1761249458830,0.78772914,110360.0,110350.0,0.36353]
[1761249460225,1.18772914,110360.0,110350.0,0.001]
[1761249460430,1.15527437,110360.0,110350.0,0.31984]
[1761249462331,1.15527437,110360.0,110350.0,0.001]
[1761249462531,1.15527437,110360.0,110350.0,0.31988]
[1761249463330,1.1064478,110360.0,110350.0,0.31988]
[1761249463934,1.1064478,110360.0,110350.0,0.001]
[1761249468729,1.15519634,110360.0,110350.0,0.001]
[1761249475638,0.75519634,110360.0,110350.0,0.04505]
[1761249475845,0.77989549,110360.0,110350.0,0.05866]
[1761249476038,0.74739634,110360.0,110350.0,0.05866]
[1761249477144,0.78769549,110360.0,110350.0,0.05866]
[1761249477445,0.78769549,110360.0,110350.0,0.02295]
[1761249477745,0.75519634,110360.0,110350.0,0.02295]
[1761249478345,0.75519634,110360.0,110350.0,0.04505]
[1761249478847,0.75519634,110360.0,110350.0,0.001]
[1761249479249,0.75519634,110360.0,110350.0,0.02295]
[1761249480350,0.75519634,110360.0,110350.0,0.001]
[1761249481544,0.7064478,110360.0,110350.0,0.001]
[1761249481939,0.77151856,110360.0,110350.0,0.001]
[1761249484455,0.77152902,110360.0,110350.0,0.001]
[1761249485559,1.09028902,110360.0,110350.0,0.001]
[1761249486857,1.41571821,110360.0,110350.0,0.001]
[1761249487060,1.25300592,110360.0,110350.0,0.001]
[1761249488161,0.93424592,110360.0,110350.0,0.001]
[1761249496375,0.93424592,110360.0,110350.0,0.02295]
[1761249496578,0.93424592,110360.0,110350.0,0.04505]
[1761249497676,0.93424592,110360.0,110350.0,0.02295]
[1761249498771,0.94958415,110360.0,110350.0,0.02295]
[1761249498971,0.86917516,110360.0,110350.0,0.02295]
[1761249499478,0.86917516,110360.0,110350.0,0.04505]
[1761249499669,0.86917516,110360.0,110350.0,0.02295]
[1761249500777,0.86917516,110360.0,110350.0,0.04505]
[1761249501477,0.86917516,110360.0,110350.0,0.001]
[1761249501478,0.86517516,110360.0,110350.0,0.001]
[1761249501675,0.86817516,110360.0,110350.0,0.001]
[1761249502184,0.86517516,110360.0,110350.0,0.001]
[1761249502480,0.86917516,110360.0,110350.0,0.001]
[1761249503075,1.22997516,110360.0,110350.0,0.001]
[1761249503282,1.54873516,110360.0,110350.0,0.001]
[1761249507183,1.62914415,110360.0,110350.0,0.001]
[1761249507982,1.54873516,110360.0,110350.0,0.001]
[1761249508687,0.1341187,110350.0,110340.0,0.05817]
[1761249508986,0.74482984,110350.0,110340.0,0.05817]
[1761249510089,0.75382984,110350.0,110340.0,0.05917]
[1761249511185,0.75582984,110350.0,110340.0,0.05917]
[1761249518789,0.69070197,110350.0,110340.0,0.05917]
[1761249519090,0.32990197,110350.0,110340.0,0.05917]
[1761249519288,1.02943099,110350.0,110340.0,0.05917]
[1761249519491,1.05150197,110350.0,110340.0,0.05917]
[1761249519786,0.88878968,110350.0,110340.0,0.22188229]
[1761249519990,1.10037601,110350.0,110340.0,0.05917]
[1761249520190,1.10037601,110350.0,110340.0,0.31248919]
[1761249520391,1.10037601,110350.0,110340.0,0.22188229]
[1761249520788,1.10037601,110350.0,110340.0,0.05917]
[1761249521090,1.10037601,110350.0,110340.0,0.1497769]
[1761249523291,1.10037601,110350.0,110340.0,0.05917]
[1761249523486,1.10037601,110350.0,110340.0,0.1497769]
[1761249523886,1.10037601,110350.0,110340.0,0.05917]
[1761249524994,1.10037601,110350.0,110340.0,0.1497768]
[1761249525293,1.10037601,110350.0,110340.0,0.22188229]
[1761249525487,1.10037601,110350.0,110340.0,0.05917]
[1761249526291,1.10748601,110350.0,110340.0,0.05917]
[1761249526496,1.10748601,110350.0,110340.0,0.04556]
[1761249530597,1.10748601,110350.0,110340.0,0.0241]
[1761249530794,1.54004426,110350.0,110340.0,0.001]
[1761249531006,0.1419351,110330.0,110320.0,0.17353]
[1761249531191,1.05880534,110330.0,110320.0,0.17353]
[1761249531392,1.07307632,110330.0,110320.0,0.2772933]
[1761249531594,1.07307632,110330.0,110320.0,0.44000559]
[1761249531798,1.07307632,110330.0,110320.0,0.2772933]
[1761249531999,1.07307632,110330.0,110320.0,0.18667]
[1761249532199,1.07507632,110330.0,110320.0,0.19591517]
[1761249532400,1.09948866,110330.0,110320.0,0.19591517]
[1761249532800,1.07507632,110330.0,110320.0,0.19591517]
[1761249532993,1.07507632,110330.0,110320.0,0.28653837]
[1761249533195,1.07507632,110330.0,110320.0,0.19591517]
[1761249533500,1.12391324,110330.0,110320.0,0.19591517]
[1761249533900,0.96120095,110330.0,110320.0,0.19591517]
[1761249534089,1.12391324,110330.0,110320.0,0.19591517]
[1761249535403,1.13171324,110330.0,110320.0,0.19591517]
[1761249535606,1.13171324,110330.0,110320.0,0.18277517]
[1761249536301,1.08287632,110330.0,110320.0,0.18277517]
[1761249536910,1.07507632,110330.0,110320.0,0.44958066]
[1761249537804,0.71427632,110330.0,110320.0,0.44958066]
[1761249538109,0.71427632,110330.0,110320.0,0.35895746]
[1761249538711,0.73867196,110330.0,110320.0,0.35895746]
[1761249540212,0.57595967,110330.0,110320.0,0.61229295]
[1761249540406,0.54340172,110330.0,110320.0,0.61229295]
[1761249540807,0.54340172,110330.0,110320.0,0.28686837]
[1761249541113,0.54340172,110330.0,110320.0,0.44958066]
[1761249541307,0.54340172,110330.0,110320.0,0.35895746]
[1761249541308,0.70611401,110330.0,110320.0,0.35895746]
[1761249541812,0.73867196,110330.0,110320.0,0.44958066]
[1761249543510,0.40926662,110330.0,110320.0,0.61229295]
[1761249543709,0.13576598,110330.0,110320.0,0.61229295]
[1761249543912,0.495875,110330.0,110320.0,0.28686837]
[1761249544103,0.70505391,110330.0,110320.0,0.38500517]
[1761249544303,0.71285391,110330.0,110320.0,0.02207]
[1761249544499,0.72101622,110330.0,110320.0,0.04433]
[1761249545010,0.1408832,110320.0,110310.0,0.04486]
[1761249545205,0.8839991,110320.0,110310.0,0.04486]
[1761249545403,0.90607008,110320.0,110310.0,0.02226]
[1761249545608,0.1330914,110310.0,110300.0,0.39035193]
[1761249545805,0.68098082,110310.0,110300.0,0.55306422]
[1761249546006,0.65660369,110310.0,110300.0,0.39035193]
[1761249546199,0.70289054,110310.0,110300.0,0.39035193]
[1761249546403,0.70289054,110310.0,110300.0,0.55306422]
[1761249546803,0.70289054,110310.0,110300.0,0.64370382]
[1761249547003,0.54017825,110310.0,110300.0,0.64470382]
[1761249547209,0.70289054,110310.0,110300.0,0.64470382]
[1761249547605,0.54017825,110310.0,110300.0,0.55406422]
[1761249547806,0.54017825,110310.0,110300.0,0.55506422]
[1761249548207,0.44954685,110310.0,110300.0,0.80841611]
[1761249548409,0.4733411,110310.0,110300.0,1.20841611]
[1761249548715,0.4733411,110310.0,110300.0,1.04574897]
[1761249548716,0.5158011,110310.0,110300.0,1.04574897]
[1761249549714,0.5158011,110310.0,110300.0,0.64574897]
[1761249550412,0.5158011,110310.0,110300.0,0.48299153]
[1761249550613,0.5158011,110310.0,110300.0,0.64574897]
[1761249551305,0.4944211,110310.0,110300.0,0.64574897]
[1761249551505,0.5158011,110310.0,110300.0,0.64574897]
[1761249552315,0.4944211,110310.0,110300.0,0.64574897]
[1761249552615,0.5158011,110310.0,110300.0,0.64574897]
[1761249554309,0.3827097,110310.0,110300.0,0.64574897]
[1761249554516,0.5158011,110310.0,110300.0,0.64574897]
[1761249555717,0.5158011,110310.0,110300.0,0.48299153]
[1761249556310,0.5158011,110310.0,110300.0,0.39235193]
[1761249556506,0.67855854,110310.0,110300.0,0.39235193]
[1761249556711,0.5158011,110310.0,110300.0,0.39235193]
[1761249557409,0.71004569,110310.0,110300.0,0.06045193]
[1761249557614,1.19969875,110310.0,110300.0,0.00073289]
[1761249558115,0.1409078,110290.0,110280.0,0.04486]
[1761249558318,1.04960921,110290.0,110280.0,0.04486]
[1761249558519,0.090656,110280.0,110270.0,0.43220427]
[1761249558711,0.493916,110280.0,110270.0,0.47706427]
[1761249558911,0.5158257,110280.0,110270.0,0.47706427]
[1761249560120,0.5158257,110280.0,110270.0,0.48006427]
[1761249562018,0.5158257,110280.0,110270.0,0.64282171]
[1761249562214,0.5158257,110280.0,110270.0,0.07064037]
[1761249562418,0.67858314,110280.0,110270.0,0.07064037]
[1761249562620,0.5158257,110280.0,110270.0,0.07064037]
[1761249562917,0.5158257,110280.0,110270.0,0.16130467]
[1761249563116,0.5158257,110280.0,110270.0,0.07064037]
[1761249563328,0.71072711,110280.0,110270.0,0.01092682]
[1761249563718,0.71072711,110280.0,110270.0,0.05479682]
[1761249563913,0.70292711,110280.0,110270.0,0.06779682]
[1761249564212,0.54016967,110280.0,110270.0,0.64001846]
[1761249564415,0.3827097,110280.0,110270.0,0.63209164]
[1761249564620,0.3608,110280.0,110270.0,1.03209164]
[1761249565117,0.18710141,110300.0,110290.0,0.1036478]
[1761249565318,0.52075357,110300.0,110290.0,0.1485178]
[1761249565625,0.71637907,110300.0,110290.0,0.04487]
[1761249566319,0.55462163,110300.0,110290.0,0.04487]
[1761249566521,0.71737907,110300.0,110290.0,0.04487]
[1761249566722,0.0906478,110290.0,110280.0,0.1474609]
[1761249566922,0.0906478,110290.0,110280.0,0.147466]
[1761249566923,0.4958978,110290.0,110280.0,0.147466]
[1761249567123,0.51773586,110290.0,110280.0,0.147466]
[1761249568119,0.06628806,110290.0,110280.0,0.147466]
[1761249568320,0.54207553,110300.0,110290.0,0.1475678]
[1761249568536,0.51773156,110300.0,110290.0,0.4663678]
[1761249569113,0.680489,110300.0,110290.0,0.37572]
[1761249569320,0.691519,110300.0,110290.0,0.36261]
[1761249569626,0.69253801,110300.0,110290.0,0.3188]
[1761249569827,0.71683923,110300.0,110290.0,0.3188]
[1761249570015,0.69253801,110300.0,110290.0,0.3188]
[1761249570219,0.71683923,110300.0,110290.0,0.3188]
[1761249570420,0.0984543,110290.0,110270.0,0.1474685]
[1761249570618,0.04445,110280.0,110270.0,0.1474685]
[1761249570824,0.135106,110280.0,110270.0,0.4662685]
[1761249571326,0.51775937,110290.0,110280.0,0.147576]
[1761249571530,0.68831681,110290.0,110280.0,0.04381]
[1761249571733,0.135106,110280.0,110270.0,0.466269]
[1761249571925,0.495906,110280.0,110270.0,0.37565]
[1761249572225,0.06630707,110280.0,110270.0,0.4663143]
[1761249572425,0.495906,110280.0,110270.0,0.4663143]
[1761249572631,0.51776307,110280.0,110270.0,0.4673143]
[1761249573023,0.51776307,110280.0,110270.0,0.37665]
[1761249573225,0.15696307,110280.0,110270.0,0.4673142]
[1761249573426,0.495906,110280.0,110270.0,0.4673142]
[1761249573626,0.51776307,110280.0,110270.0,0.4673142]
[1761249575629,0.02185707,110280.0,110270.0,1.39087164]
[1761249575830,0.51775657,110290.0,110280.0,0.147576]
[1761249576336,0.51775657,110290.0,110280.0,0.31033344]
[1761249576637,0.06630707,110290.0,110280.0,0.31033344]
[1761249576837,0.04445,110290.0,110280.0,0.31033344]
[1761249577032,0.1350978,110290.0,110280.0,0.31033344]
[1761249577632,0.4958978,110290.0,110280.0,0.37576]
[1761249577833,0.51775487,110290.0,110280.0,0.37576]
[1761249578137,0.70481353,110290.0,110280.0,0.37576]
[1761249578334,0.54205609,110290.0,110280.0,0.37576]
[1761249578534,0.54205609,110290.0,110280.0,0.466416]
[1761249579033,0.51775487,110290.0,110280.0,0.466416]
[1761249580134,0.15695487,110290.0,110280.0,0.466416]
[1761249580334,0.4958978,110290.0,110280.0,0.466416]
[1761249580634,0.15695487,110290.0,110280.0,0.466416]
[1761249580929,0.1350978,110290.0,110280.0,0.62917344]
[1761249581322,0.1350978,110290.0,110280.0,0.466416]
[1761249581526,0.1350978,110290.0,110280.0,0.62917344]
[1761249581834,0.1350978,110290.0,110280.0,0.466416]
[1761249582138,0.1350978,110290.0,110280.0,0.62917344]
[1761249582337,0.1118878,110290.0,110280.0,0.62917344]
[1761249582537,0.1350978,110290.0,110280.0,0.62917344]
[1761249582934,0.4958978,110290.0,110280.0,0.62917344]
[1761249583237,0.15695487,110290.0,110280.0,0.466416]
[1761249583437,0.4958978,110290.0,110280.0,0.466416]
[1761249583734,0.135106,110280.0,110270.0,0.1474717]
[1761249584036,0.495906,110280.0,110270.0,0.62906914]
[1761249584234,0.51776307,110280.0,110270.0,0.62906914]
[1761249584834,0.51776307,110280.0,110270.0,0.63006914]
[1761249585434,0.51776307,110280.0,110270.0,0.99086914]
[1761249585435,0.02185707,110280.0,110270.0,0.99086914]
[1761249585630,0.54205839,110290.0,110280.0,0.147576]
[1761249587235,0.07861692,110290.0,110280.0,0.31033344]
[1761249587440,0.15939902,110290.0,110280.0,0.31033344]
[1761249587642,0.52019902,110290.0,110280.0,0.466456]
[1761249587843,0.37647216,110290.0,110280.0,0.466456]
[1761249588041,0.55265765,110290.0,110280.0,0.466456]
[1761249588238,0.73727216,110290.0,110280.0,0.04381]
[1761249588442,0.74830216,110290.0,110280.0,0.36269]
[1761249588848,0.74830216,110290.0,110280.0,0.3758]
[1761249589052,0.58554472,110290.0,110280.0,0.3758]
[1761249589254,0.5612435,110290.0,110280.0,0.3758]
[1761249589454,0.5612435,110290.0,110280.0,0.466456]
[1761249589645,0.72400094,110290.0,110280.0,0.02263]
[1761249589846,0.72400094,110290.0,110270.0,0.1474668]
[1761249589847,0.135106,110280.0,110270.0,0.1474668]
[1761249590046,0.68305224,110280.0,110270.0,0.4663468]
[1761249590247,0.54215187,110280.0,110270.0,0.4663468]
[1761249590654,0.54215187,110280.0,110270.0,0.05681]
[1761249590856,0.54215187,110280.0,110270.0,0.4663543]
[1761249591056,0.54215187,110280.0,110270.0,0.4673543]
[1761249591263,0.71270931,110280.0,110270.0,0.4673543]
[1761249591464,0.71270931,110280.0,110270.0,0.1484743]
[1761249591663,0.54215187,110280.0,110270.0,0.4673543]
[1761249592861,0.70490931,110280.0,110270.0,0.37669]
[1761249593058,0.5580217,110280.0,110270.0,0.04481]
[1761249593258,0.5580217,110280.0,110270.0,0.4543543]
[1761249593466,0.5580217,110280.0,110270.0,0.36369]
[1761249593666,0.72077914,110280.0,110270.0,0.36369]
[1761249593867,0.76961606,110280.0,110270.0,0.37162997]
[1761249594253,0.60685862,110280.0,110270.0,0.37162997]
[1761249594458,0.60685862,110280.0,110270.0,0.46229427]
[1761249594858,0.59905862,110280.0,110270.0,0.47603427]
[1761249595063,0.60005862,110280.0,110270.0,0.47503427]
[1761249595260,0.57560554,110280.0,110270.0,0.05755]
[1761249595563,0.72177914,110280.0,110270.0,0.04381]
[1761249595868,0.1358243,110270.0,110260.0,0.48197181]
[1761249596065,0.52100779,110270.0,110260.0,0.39130001]
[1761249596265,0.52100779,110270.0,110260.0,0.38209453]
[1761249596266,0.57532349,110270.0,110260.0,0.38209453]
[1761249596461,0.58312349,110270.0,110260.0,0.47276703]
[1761249596857,0.55066486,110270.0,110260.0,0.32341453]
[1761249597061,0.7134223,110270.0,110260.0,0.32341453]
[1761249597370,0.54286476,110270.0,110260.0,0.06348453]
[1761249598372,0.55066476,110270.0,110260.0,0.04974453]
[1761249598572,0.54286476,110270.0,110260.0,0.15415703]
[1761249599171,0.45220056,110270.0,110260.0,0.15415703]
[1761249599576,0.54286476,110270.0,110260.0,0.15415703]
[1761249600370,0.45220056,110270.0,110260.0,0.15415703]
[1761249600771,0.54286486,110270.0,110260.0,0.15415703]
[1761249601382,0.7134223,110270.0,110260.0,0.00453453]
[1761249601678,0.89411829,110270.0,110260.0,0.04974453]
[1761249601873,0.77035461,110270.0,110260.0,0.00453453]
[1761249602074,0.1214671,110230.0,110220.0,0.00453618]
[1761249602378,0.1214671,110230.0,110220.0,0.0125297]
[1761249602379,1.0341937,110230.0,110220.0,0.0125297]
[1761249602582,0.89329333,110230.0,110220.0,0.0125297]
[1761249602779,0.45217096,110230.0,110220.0,0.0714797]
[1761249602967,0.10198575,110250.0,110240.0,0.0906889]
[1761249603172,0.65939814,110250.0,110240.0,0.05895]
[1761249603377,0.68136863,110250.0,110240.0,0.37879]
[1761249603574,0.70572252,110250.0,110240.0,0.37879]
[1761249603778,0.73819438,110250.0,110240.0,0.37879]
[1761249604372,0.74019438,110250.0,110240.0,0.37879]
[1761249604768,0.08079624,110250.0,110240.0,0.8694789]
[1761249604974,0.00208922,110250.0,110240.0,1.39303634]
[1761249605578,0.00208922,110250.0,110240.0,1.03223634]
[1761249605879,0.13792992,110250.0,110240.0,0.4698389]
[1761249608084,0.04724922,110250.0,110240.0,0.4698389]
[1761249608272,0.04724922,110250.0,110240.0,0.63259634]
[1761249608473,0.00108922,110250.0,110240.0,0.63259634]
[1761249610778,0.13692992,110250.0,110240.0,0.4698389]
[1761249610980,0.13692992,110250.0,110240.0,0.63277169]
[1761249611980,0.13692992,110250.0,110240.0,0.4698389]
[1761249612182,0.13692992,110250.0,110240.0,0.63277169]
[1761249612378,0.66066271,110250.0,110240.0,0.05895]
[1761249612578,0.68254398,110250.0,110240.0,0.37911]
[1761249612779,0.1436489,110240.0,110230.0,0.02248]
[1761249612980,0.1358571,110230.0,110220.0,0.47430868]
[1761249613185,0.65966856,110230.0,110220.0,0.47430868]
[1761249613386,0.68154983,110230.0,110220.0,0.38360618]
[1761249614086,0.69257983,110230.0,110220.0,0.38460618]
[1761249614686,0.52964704,110230.0,110220.0,0.38460618]
[1761249614881,0.51861704,110230.0,110220.0,0.38460618]
[1761249615483,0.51861704,110230.0,110220.0,0.06448618]
[1761249616289,0.51861704,110230.0,110220.0,0.15519148]
[1761249617783,0.51861704,110230.0,110220.0,0.06448618]
[1761249618492,0.51861704,110230.0,110220.0,0.15519148]
[1761249620497,0.51861704,110230.0,110220.0,0.06448618]
[1761249622594,0.73343309,110230.0,110220.0,0.02801618]
[1761249622988,0.73343309,110230.0,110220.0,0.00553618]
[1761249623289,0.73343309,110230.0,110220.0,0.02878618]
[1761249623492,0.73343309,110230.0,110220.0,0.05050618]
[1761249624287,0.73343309,110230.0,110220.0,0.02725618]
[1761249624490,1.47778698,110230.0,110220.0,0.00553618]
[1761249624686,1.51025884,110230.0,110220.0,0.00553618]
[1761249624893,1.48590495,110230.0,110220.0,0.00553618]
[1761249625091,1.53461384,110230.0,110220.0,0.00553618]
[1761249625794,1.48590495,110230.0,110220.0,0.00553618]
[1761249626505,1.53461384,110230.0,110220.0,0.00553618]
[1761249626793,1.53461384,110230.0,110220.0,0.00453618]